bitfinex/quotes_SOLUSD_20251030
["timestamp","ask_amount","ask_price","bid_price","bid_amount"]
[1761846200331,5.74516764,182.35,182.28,5.74516764]
[1761846200617,5.74516764,182.34,182.27,26.33716764]
[1761846200819,5.74516764,182.38,182.31,5.74516764]
[1761846201025,0.1,182.42,182.35,5.74516764]
[1761846201240,0.1,182.42,182.38,5.74516764]
[1761846201397,0.1,182.42,182.39,5.74516764]
[1761846201598,0.1,182.42,182.39,6.44516764]
[1761846202526,11.33648665,182.46,182.41,5.74516764]
[1761846202715,5.48103746,182.45,182.4,0.7]
[1761846202902,5.48103746,182.45,182.41,5.74516764]
[1761846203335,5.48103746,182.45,182.41,6.44516764]
[1761846203710,11.76,182.49,182.44,5.74516764]
[1761846203923,17.50516764,182.49,182.44,5.74516764]
[1761846204124,11.76,182.49,182.45,6.44516764]
[1761846204305,36.68431589,182.49,182.43,5.74516764]
[1761846204631,5.74516764,182.48,182.43,5.74516764]
[1761846205522,36.68431589,182.49,182.43,5.74516764]
[1761846207032,17.23976747,182.49,182.44,5.74516764]
[1761846207208,17.23976747,182.49,182.46,5.74516764]
[1761846207603,0.1,182.5,182.48,5.74516764]
[1761846207832,0.1,182.5,182.49,6.44516764]
[1761846208340,0.2,182.51,182.49,23.93033528]
[1761846208505,0.2,182.51,182.5,6.44516764]
[1761846208835,0.2,182.53,182.51,0.28432314]
[1761846209053,0.1,182.56,182.55,0.28432314]
[1761846209336,0.1,182.56,182.54,20.592]
[1761846209513,0.1,182.56,182.54,26.33716764]
[1761846209708,0.1,182.56,182.55,5.74516764]
[1761846209903,0.1,182.56,182.51,0.7]
[1761846209904,6.29765118,182.56,182.52,5.74516764]
[1761846210123,6.29765118,182.56,182.51,17.48516764]
[1761846210336,0.72,182.55,182.51,5.74516764]
[1761846210525,0.72,182.55,182.49,11.74]
[1761846210724,5.74516764,182.5,182.4,32.92]
[1761846210908,5.74516764,182.5,182.44,5.74516764]
[1761846210909,0.72,182.49,182.44,5.74516764]
[1761846211108,0.72,182.49,182.45,5.74516764]
[1761846211842,6.46516764,182.49,182.44,5.74516764]
[1761846212009,5.74516764,182.48,182.42,5.74516764]
[1761846212336,0.72,182.48,182.42,5.74516764]
[1761846212633,5.47945205,182.5,182.45,5.74516764]
[1761846212837,5.74516764,182.49,182.43,5.74516764]
[1761846213035,0.72,182.49,182.44,5.74516764]
[1761846213231,5.47885163,182.52,182.48,5.74516764]
[1761846213843,0.72,182.51,182.48,5.74516764]
[1761846214245,6.19942769,182.51,182.48,5.74516764]
[1761846214631,0.72,182.5,182.46,5.74516764]
[1761846214839,5.74516764,182.49,182.44,11.74]
[1761846215044,6.46516764,182.5,182.44,17.48516764]
[1761846215244,0.72,182.49,182.44,17.48516764]
[1761846215846,5.74516764,182.48,182.37,0.7]
[1761846216048,5.74516764,182.47,182.41,5.74516764]
[1761846216243,19.18228652,182.46,182.41,5.74516764]
[1761846216728,6.20065329,182.46,182.42,5.74516764]
[1761846216932,5.74516764,182.48,182.38,11.74]
[1761846216933,12.46,182.51,182.45,5.74516764]
[1761846217134,5.47945205,182.5,182.45,5.74516764]
[1761846217364,11.22461969,182.5,182.45,5.74516764]
[1761846217556,11.94461969,182.5,182.45,5.74516764]
[1761846217730,6.46516764,182.49,182.43,17.48516764]
[1761846218457,5.4800526,182.48,182.43,17.48516764]
[1761846218850,6.2000526,182.48,182.43,17.48516764]
[1761846219161,0.72,182.47,182.43,11.74]
[1761846219870,0.72,182.47,182.43,17.48516764]
[1761846220156,0.72,182.52,182.46,5.74516764]
[1761846220357,5.47945205,182.5,182.43,11.74]
[1761846220568,11.22461969,182.5,182.44,5.74516764]
[1761846220768,0.72,182.5,182.45,5.74516764]
[1761846220935,5.74516764,182.49,182.44,11.74]
[1761846221140,6.46516764,182.49,182.44,73.44]
[1761846221343,5.74516764,182.49,182.44,73.44]
[1761846221559,0.72,182.48,182.44,73.44]
[1761846221772,0.72,182.48,182.44,61.7]
[1761846222074,6.46516764,182.48,182.44,61.7]
[1761846222264,0.72,182.48,182.44,61.7]
[1761846222565,6.20035293,182.47,182.44,61.7]
[1761846223067,5.48035293,182.47,182.44,61.7]
[1761846223268,0.72,182.46,182.44,61.7]
[1761846223472,5.48035293,182.47,182.44,61.7]
[1761846223677,6.20035293,182.47,182.44,61.7]
[1761846223878,0.72,182.47,182.44,61.7]
[1761846224043,14.41876748,182.5,182.44,67.44516764]
[1761846224373,13.69876748,182.5,182.43,17.48516764]
[1761846224584,11.74,182.51,182.46,5.74516764]
[1761846224585,5.47934133,182.51,182.46,5.74516764]
[1761846224769,0.72,182.5,182.45,5.74516764]
[1761846225144,11.74,182.53,182.46,0.71]
[1761846225345,6.46516764,182.55,182.49,5.74516764]
[1761846225658,0.72,182.54,182.49,5.74516764]
[1761846225847,6.19825134,182.54,182.5,5.74516764]
[1761846226035,5.47825134,182.54,182.5,5.74516764]
[1761846226240,5.47825134,182.54,182.49,5.74516764]
[1761846226241,6.19825134,182.54,182.49,5.74516764]
[1761846226848,5.47801124,182.55,182.48,5.74516764]
[1761846227056,6.46516764,182.54,182.48,5.74516764]
[1761846227257,5.74516764,182.53,182.47,17.48516764]
[1761846227463,5.74516764,182.53,182.49,20.592]
[1761846227767,11.2237751,182.53,182.49,20.592]
[1761846227974,6.46516764,182.52,182.49,20.592]
[1761846228140,6.46516764,182.52,182.48,11.74]
[1761846228849,5.47860746,182.53,182.45,26.33716764]
[1761846228850,6.46516764,182.51,182.45,26.33716764]
[1761846229051,6.46516764,182.51,182.46,11.72]
[1761846229368,5.74516764,182.5,182.46,11.72]
[1761846229541,6.46516764,182.5,182.46,20.592]
[1761846229739,11.94472821,182.5,182.46,20.592]
[1761846229939,11.94472821,182.5,182.46,32.312]
[1761846229940,11.22472821,182.5,182.46,32.312]
[1761846230141,0.72,182.49,182.45,32.312]
[1761846230366,5.74516764,182.48,182.45,11.72]
[1761846230773,0.72,182.47,182.42,11.72]
[1761846231074,5.74516764,182.46,182.43,20.592]
[1761846231240,6.46516764,182.47,182.43,20.592]
[1761846231840,11.94569125,182.47,182.43,20.592]
[1761846232654,0.72,182.47,182.43,20.592]
[1761846232854,11.94552645,182.47,182.43,20.592]
[1761846233049,5.74516764,182.47,182.43,20.592]
[1761846233767,11.22555637,182.47,182.43,20.592]
[1761846233968,5.48038873,182.47,182.43,20.592]
[1761846234177,0.72,182.49,182.43,27.04716764]
[1761846234178,6.19977455,182.49,182.43,27.04716764]
[1761846234344,5.74516764,182.51,182.45,5.74516764]
[1761846234544,6.46516764,182.51,182.45,17.46516764]
[1761846235049,0.72,182.51,182.45,17.46516764]
[1761846235358,6.46516764,182.51,182.45,17.46516764]
[1761846235869,5.47945205,182.5,182.45,18.17516764]
[1761846236275,11.22435421,182.51,182.45,18.17516764]
[1761846236476,5.74516764,182.5,182.45,18.17516764]
[1761846237277,5.74516764,182.5,182.45,12.43]
[1761846238469,11.2247011,182.5,182.45,12.43]
[1761846238672,5.74516764,182.49,182.45,12.43]
[1761846239085,5.74516764,182.49,182.45,11.72]
[1761846239256,5.74516764,182.47,182.45,11.72]
[1761846239456,5.74516764,182.46,182.45,11.72]
[1761846239652,5.47953346,182.5,182.45,11.72]
[1761846239850,5.74516764,182.47,182.45,11.72]
[1761846240287,0.72,182.49,182.45,11.72]
[1761846240580,5.74516764,182.49,182.45,12.43]
[1761846240782,5.74516764,182.48,182.45,12.43]
[1761846240954,6.19979943,182.49,182.45,11.72]
[1761846241154,5.74516764,182.47,182.45,73.42]
[1761846241663,0.72,182.48,182.45,73.42]
[1761846241864,11.22464898,182.5,182.46,0.71]
[1761846242080,5.4791949,182.51,182.46,0.71]
[1761846242254,0.72,182.54,182.47,11.72]
[1761846242456,5.74516764,182.53,182.48,6.45516764]
[1761846242672,5.74516764,182.53,182.48,0.71]
[1761846242872,6.46516764,182.53,182.48,0.71]
[1761846243550,19.17282935,182.55,182.47,11.72]
[1761846243752,19.17282935,182.55,182.42,61.84216157]
[1761846243753,5.74516764,182.49,182.45,20.592]
[1761846243946,5.74516764,182.47,182.45,20.592]
[1761846244153,5.74516764,182.46,182.45,11.72]
[1761846244367,11.2258956,182.46,182.43,11.72]
[1761846244654,5.74516764,182.46,182.43,11.72]
[1761846244985,5.74516764,182.47,182.43,11.72]
[1761846245286,5.74516764,182.46,182.43,11.72]
[1761846245486,6.20036682,182.47,182.43,11.72]
[1761846245687,5.74516764,182.45,182.43,11.72]
[1761846245867,6.46516764,182.44,182.39,0.71]
[1761846246065,5.74516764,182.43,182.4,11.72]
[1761846246379,6.20132346,182.44,182.4,11.72]
[1761846246567,5.74516764,182.44,182.4,11.72]
[1761846246768,5.74516764,182.44,182.41,0.71]
[1761846246956,5.74516764,182.45,182.4,11.72]
[1761846247163,5.74516764,182.45,182.4,12.43]
[1761846247656,5.74516764,182.46,182.4,18.17516764]
[1761846247859,5.74516764,182.46,182.4,17.46516764]
[1761846248486,5.74516764,182.45,182.4,11.72]
[1761846248674,5.48086502,182.46,182.4,11.72]
[1761846248879,11.22603266,182.46,182.4,17.46516764]
[1761846249460,6.20036807,182.47,182.42,5.74516764]
[1761846249875,0.7,182.46,182.41,5.74516764]
[1761846250071,5.48036807,182.47,182.42,5.74516764]
[1761846250271,0.7,182.52,182.46,5.74516764]
[1761846250585,11.9240896,182.52,182.47,5.74516764]
[1761846250883,6.44516764,182.54,182.49,5.74516764]
[1761846251085,0.7,182.53,182.49,11.72]
[1761846251381,6.44516764,182.53,182.49,11.72]
[1761846251883,5.74516764,182.5,182.47,11.72]
[1761846252079,0.7,182.52,182.41,6.42516764]
[1761846252080,5.74516764,182.48,182.41,6.42516764]
[1761846252385,11.2260828,182.46,182.42,11.72]
[1761846252757,11.9260828,182.46,182.42,11.72]
[1761846253281,11.9260828,182.46,182.36,4.5431354]
[1761846253282,5.74516764,182.44,182.38,5.74516764]
[1761846253582,5.74516764,182.43,182.39,11.72]
[1761846253953,5.74516764,182.45,182.4,0.68]
[1761846254157,5.47915182,182.51,182.44,5.74516764]
[1761846254462,6.44516764,182.5,182.44,17.46516764]
[1761846254670,21.50882769,182.54,182.44,32.312]
[1761846254874,0.7,182.52,182.47,5.74516764]
[1761846255380,0.7,182.52,182.47,8.70864707]
[1761846255567,9.40864707,182.52,182.46,8.70864707]
[1761846256078,0.7,182.52,182.46,8.70864707]
[1761846256279,9.40864707,182.52,182.46,8.70864707]
[1761846256481,5.47915182,182.51,182.46,8.70864707]
[1761846256665,5.47858239,182.53,182.48,8.70864707]
[1761846257087,0.68,182.52,182.48,8.70864707]
[1761846257287,0.68,182.52,182.48,20.40864707]
[1761846257475,0.68,182.52,182.48,11.7]
[1761846257772,0.68,182.52,182.48,20.40864707]
[1761846257969,0.68,182.52,182.48,11.7]
[1761846258582,8.70864707,182.55,182.49,9.39864707]
[1761846259171,8.80864707,182.56,182.51,8.70864707]
[1761846259382,8.80864707,182.56,182.53,8.70864707]
[1761846259383,0.1,182.56,182.53,8.70864707]
[1761846260001,5.57765225,182.56,182.52,20.40864707]
[1761846260177,6.25765225,182.56,182.52,20.40864707]
[1761846260506,0.1,182.56,182.52,20.40864707]
[1761846261267,0.1,182.56,182.52,21.09864707]
[1761846261466,0.1,182.56,182.53,8.70864707]
[1761846261862,0.1,182.56,182.52,11.7]
[1761846262068,0.1,182.56,182.53,8.70864707]
[1761846262495,0.1,182.56,182.54,8.70864707]
[1761846262796,0.1,182.56,182.55,11.7]
[1761846266170,0.1,182.56,182.55,21.38297021]
[1761846266373,0.1,182.56,182.55,36.64974914]
[1761846267099,0.2,182.59,182.58,30.38082769]
[1761846267302,0.2,182.59,182.58,51.47947476]
[1761846268298,0.2,182.59,182.58,51.7637979]
[1761846268797,0.2,182.59,182.58,31.1717979]
[1761846269000,0.2,182.59,182.58,36.64884905]
[1761846270273,0.2,182.59,182.58,37.19655416]
[1761846271698,0.2,182.66,182.59,110.07315083]
[1761846271998,0.2,182.66,182.64,18.7817979]
[1761846272315,0.2,182.66,182.64,30.4817979]
[1761846272488,0.2,182.66,182.64,31.1717979]
[1761846273086,0.2,182.66,182.64,36.64704976]
[1761846273304,0.2,182.66,182.64,45.35569683]
[1761846273503,0.2,182.66,182.64,107.05569683]
[1761846274510,0.2,182.73,182.64,107.05569683]
[1761846274511,0.2,182.73,182.71,9.78882769]
[1761846274678,0.2,182.73,182.72,20.67297021]
[1761846274879,0.2,182.73,182.72,11.68]
[1761846275102,0.2,182.73,182.71,8.70864707]
[1761846275302,0.2,182.73,182.72,11.68]
[1761846275606,0.2,182.73,182.72,20.38864707]
[1761846275900,0.2,182.73,182.72,11.68]
[1761846276976,0.2,182.73,182.71,8.70864707]
[1761846277177,0.2,182.73,182.72,11.68]
[1761846277378,0.2,182.73,182.72,20.38864707]
[1761846277803,0.2,182.73,182.72,31.1517979]
[1761846278198,0.2,182.73,182.72,18.7817979]
[1761846278513,0.2,182.73,182.72,30.4617979]
[1761846278890,0.2,182.73,182.72,21.75315083]
[1761846279215,0.2,182.73,182.7,11.68]
[1761846279383,0.2,182.73,182.71,8.70864707]
[1761846279582,0.2,182.73,182.72,20.592]
[1761846279811,0.2,182.73,182.71,8.70864707]
[1761846280310,0.2,182.73,182.72,20.592]
[1761846281098,0.2,182.73,182.7,20.38864707]
[1761846282008,0.2,182.73,182.71,8.70864707]
[1761846282213,0.2,182.73,182.72,20.38864707]
[1761846284435,0.9,182.73,182.72,20.592]
[1761846284585,0.9,182.73,182.71,11.68]
[1761846284783,0.9,182.73,182.7,11.68]
[1761846285017,0.7,182.72,182.7,11.68]
[1761846285517,8.70864707,182.71,182.66,8.70864707]
[1761846285814,8.70864707,182.71,182.67,11.68]
[1761846286023,9.40864707,182.7,182.64,25.17349515]
[1761846286197,9.40864707,182.7,182.65,11.68]
[1761846286524,0.7,182.7,182.65,40.98064707]
[1761846287025,0.7,182.72,182.67,8.70864707]
[1761846287311,0.7,182.72,182.68,40.98064707]
[1761846287510,0.7,182.72,182.69,8.70864707]
[1761846287815,0.7,182.72,182.71,20.592]
[1761846288110,0.2,182.73,182.71,32.252]
[1761846288315,0.2,182.73,182.71,40.96064707]
[1761846289196,0.2,182.73,182.72,8.70864707]
[1761846290206,0.2,182.73,182.72,8.99297021]
[1761846291384,0.2,182.73,182.72,19.5017979]
[1761846292302,0.2,182.73,182.72,86.67465254]
[1761846292489,0.2,182.73,182.72,87.221938]
[1761846292691,0.2,182.73,182.72,25.521938]
[1761846292888,0.2,182.73,182.72,24.97465254]
[1761846293405,0.2,182.73,182.72,19.5017979]
[1761846293594,0.2,182.73,182.72,30.4417979]
[1761846293905,0.2,182.73,182.72,31.1617979]
[1761846295601,0.2,182.73,182.72,18.7817979]
[1761846295803,0.2,182.73,182.72,30.4417979]
[1761846296189,0.2,182.73,182.72,8.70864707]
[1761846296501,0.9,182.73,182.68,8.70864707]
[1761846296701,0.9,182.73,182.69,11.66]
[1761846296898,0.7,182.72,182.69,11.66]
[1761846297095,0.9,182.73,182.69,20.36864707]
[1761846297426,0.7,182.72,182.69,11.66]
[1761846297720,8.90864707,182.73,182.69,11.66]
[1761846297917,0.2,182.73,182.69,20.36864707]
[1761846298109,0.2,182.73,182.69,11.66]
[1761846298313,0.2,182.73,182.72,20.592]
[1761846298503,0.2,182.73,182.72,41.24497021]
[1761846299216,0.2,182.73,182.72,32.252]
[1761846299818,0.2,182.73,182.72,20.592]
[1761846299995,0.2,182.73,182.72,32.252]
[1761846300195,0.2,182.73,182.72,41.24497021]
[1761846300915,0.2,182.73,182.72,32.252]
[1761846301531,9.60864707,182.73,182.64,16.15339674]
[1761846301708,0.2,182.73,182.68,8.70864707]
[1761846301897,0.2,182.73,182.69,40.96064707]
[1761846302227,0.2,182.73,182.72,39.23163633]
[1761846302396,0.2,182.73,182.72,51.7537979]
[1761846302595,0.2,182.76,182.75,30.66515083]
[1761846302917,0.2,182.76,182.75,51.5837979]
[1761846303091,0.2,182.76,182.75,101.5837979]
[1761846303295,0.2,182.76,182.75,31.21515083]
[1761846303495,0.2,182.76,182.75,0.28432314]
[1761846303691,0.2,182.76,182.75,11.94432314]
[1761846303997,0.2,182.76,182.75,21.20297021]
[1761846304205,0.2,182.76,182.75,20.65297021]
[1761846304602,0.2,182.76,182.75,30.4417979]
[1761846304930,0.1,182.78,182.77,9.78882769]
[1761846305229,0.7,182.87,182.81,30.38082769]
[1761846305433,14.17615525,182.9,182.84,8.70864707]
[1761846305434,8.70864707,182.9,182.84,8.70864707]
[1761846305727,0.7,182.89,182.86,8.70864707]
[1761846306029,0.7,182.89,182.87,11.66]
[1761846308117,14.87646046,182.89,182.88,11.64]
[1761846308600,0.7,182.89,182.88,11.64]
[1761846309429,0.7,182.89,182.88,11.14]
[1761846309933,0.1,182.92,182.88,19.84864707]
[1761846310116,0.66,182.91,182.88,11.14]
[1761846310514,0.1,182.92,182.9,8.70864707]
[1761846310713,0.1,182.92,182.91,20.34864707]
[1761846311029,0.76,182.92,182.91,11.64]
[1761846311928,14.93551869,182.92,182.89,20.592]
[1761846312117,6.22687162,182.92,182.9,11.64]
[1761846312317,9.36864707,182.91,182.87,20.592]
[1761846312532,8.70864707,182.88,182.87,11.64]
[1761846312834,0.66,182.9,182.87,11.64]
[1761846313528,0.1,182.92,182.91,20.592]
[1761846313736,0.1,182.92,182.91,32.232]
[1761846313930,0.1,182.92,182.91,40.94064707]
[1761846314524,0.1,182.92,182.91,41.22497021]
[1761846315352,0.1,182.92,182.91,51.2637979]
[1761846315551,0.1,182.92,182.91,42.30515083]
[1761846315741,0.1,182.92,182.91,48.00611189]
[1761846316140,0.1,182.92,182.91,48.02232047]
[1761846316327,0.1,182.92,182.91,48.25611189]
[1761846316528,0.1,182.92,182.91,48.00611189]
[1761846316737,0.1,182.92,182.91,36.36611189]
[1761846316943,0.1,182.92,182.91,48.00611189]
[1761846317146,0.1,182.92,182.85,100.0]
[1761846317147,0.1,182.92,182.86,5.46854906]
[1761846317334,0.1,182.92,182.91,20.592]
[1761846317530,0.1,182.92,182.91,32.232]
[1761846318345,0.76,182.92,182.91,32.232]
[1761846318647,0.1,182.92,182.91,11.64]
[1761846319060,0.1,182.92,182.91,17.6252842]
[1761846319361,0.1,182.92,182.91,27.41411189]
[1761846319546,0.1,182.92,182.91,27.66411189]
[1761846319873,0.1,182.92,182.91,33.13128153]
[1761846321459,0.1,182.92,182.91,88.83224259]
[1761846321659,5.70096106,183.05,182.91,88.83224259]
[1761846321660,5.70096106,183.05,182.98,5.70096106]
[1761846321857,5.4635852,183.03,182.99,32.212]
[1761846322158,5.70096106,183.03,183.0,11.62]
[1761846322359,9.78882769,183.08,182.99,20.592]
[1761846322662,9.78882769,183.08,183.0,11.62]
[1761846322663,5.70096106,183.02,183.0,11.62]
[1761846322843,5.70096106,183.04,183.0,11.62]
[1761846323164,19.1162816,183.09,183.0,11.62]
[1761846323530,5.70096106,183.06,183.0,11.62]
[1761846323760,19.1162816,183.09,183.0,17.32096106]
[1761846324055,5.70096106,183.06,183.0,17.32096106]
[1761846324268,5.70096106,183.06,183.0,11.62]
[1761846324435,5.70096106,183.05,183.0,11.62]
[1761846324639,5.70096106,183.03,183.0,11.62]
[1761846324844,5.70096106,183.02,182.99,20.592]
[1761846325046,5.70096106,183.0,182.87,51.99999999]
[1761846325254,5.70096106,182.99,182.93,0.14216157]
[1761846325567,0.66,183.03,182.97,20.592]
[1761846325568,6.36096106,183.03,182.97,20.592]
[1761846325757,6.36096106,183.03,182.98,11.62]
[1761846325758,0.66,183.03,182.98,11.62]
[1761846325962,11.16514334,183.01,182.98,11.62]
[1761846326384,11.16514334,183.01,182.92,0.14216157]
[1761846326385,5.70096106,182.99,182.92,5.70096106]
[1761846326580,5.70096106,182.97,182.9,5.70096106]
[1761846326885,5.70096106,182.97,182.84,5.46926274]
[1761846326886,5.70096106,182.98,182.91,17.32096106]
[1761846327083,5.46418228,183.01,182.95,5.70096106]
[1761846327287,5.70096106,183.02,182.96,11.62]
[1761846328459,5.4635852,183.03,182.96,11.62]
[1761846328460,5.70096106,183.01,182.96,11.62]
[1761846328869,5.4635852,183.03,182.96,11.62]
[1761846329162,5.70096106,183.02,182.96,11.62]
[1761846329481,5.70096106,183.02,182.97,11.62]
[1761846330062,5.46418228,183.01,182.97,11.62]
[1761846330261,11.16490981,183.02,182.97,11.62]
[1761846330461,5.70096106,183.01,182.97,11.62]
[1761846330980,5.70096106,183.0,182.95,20.592]
[1761846331275,5.70096106,182.99,182.97,11.62]
[1761846331481,0.66,183.01,182.95,32.212]
[1761846331482,5.70096106,182.98,182.95,32.212]
[1761846332172,5.46448087,183.0,182.95,32.212]
[1761846332551,11.16544193,183.0,182.95,32.212]
[1761846332771,11.82519497,183.01,182.95,32.212]
[1761846333061,9.78882769,183.04,182.95,37.67793289]
[1761846333381,5.70096106,183.04,182.98,20.592]
[1761846333569,5.70096106,183.04,182.99,11.62]
[1761846333782,5.70096106,183.02,182.98,20.592]
[1761846333969,5.70096106,183.01,182.99,11.62]
[1761846334168,5.46448087,183.0,182.99,11.62]
[1761846334392,11.16544193,183.0,182.93,5.70096106]
[1761846334568,11.16544193,183.0,182.97,20.592]
[1761846334767,5.46448087,183.0,182.98,11.62]
[1761846335177,9.78882769,183.06,182.98,11.62]
[1761846335374,0.66,183.15,183.01,20.592]
[1761846335600,0.66,183.14,183.02,11.62]
[1761846335808,5.70096106,183.06,183.01,20.592]
[1761846335968,5.70096106,183.05,183.03,11.62]
[1761846336173,5.46179474,183.09,183.03,11.62]
[1761846336376,9.78882769,183.08,183.01,11.62]
[1761846336689,5.70096106,183.02,182.98,20.592]
[1761846336888,5.70096106,183.01,182.99,11.62]
[1761846337068,9.78882769,183.04,182.98,11.62]
[1761846337267,20.592,183.05,182.98,11.62]
[1761846337268,5.70096106,183.03,182.98,11.62]
[1761846337486,10.44882769,183.07,182.98,32.212]
[1761846337487,5.70096106,183.02,182.98,32.212]
[1761846337678,0.66,183.07,182.98,37.91296106]
[1761846337878,0.66,183.07,182.98,32.212]
[1761846337879,5.70096106,183.03,182.98,32.212]
[1761846338083,5.70096106,183.02,182.98,32.212]
[1761846338372,0.66,183.07,182.98,32.212]
[1761846338373,5.70096106,183.01,182.99,11.62]
[1761846339302,19.11941439,183.06,182.99,11.62]
[1761846339500,27.2930952,183.2,183.0,0.28432314]
[1761846339802,5.70096106,183.06,183.0,20.87632314]
[1761846340100,13.65776196,183.05,182.98,11.62]
[1761846340310,20.592,183.08,182.97,11.62]
[1761846340311,5.70096106,183.03,182.97,11.62]
[1761846340606,5.46328671,183.04,182.98,32.212]
[1761846340607,5.70096106,183.01,182.98,32.212]
[1761846340809,5.70096106,182.99,182.98,11.62]
[1761846341107,5.70096106,182.99,182.96,11.62]
[1761846341315,10.46882769,183.03,182.96,11.62]
[1761846341491,0.68,183.03,182.96,11.62]
[1761846341678,5.70096106,183.01,182.96,11.62]
[1761846342074,5.46388372,183.02,182.96,11.62]
[1761846342276,0.68,183.03,182.96,17.32096106]
[1761846342606,11.84468428,183.03,182.96,17.32096106]
[1761846343109,5.70096106,183.02,182.96,11.62]
[1761846343321,9.78882769,183.07,182.98,5.70096106]
[1761846343477,5.70096106,183.05,182.99,11.6]
[1761846344084,20.592,183.08,182.99,11.6]
[1761846344085,5.70096106,183.08,183.02,26.29296106]
[1761846344296,5.70096106,183.08,183.03,11.6]
[1761846344803,5.70096106,183.07,183.03,11.6]
[1761846345036,0.68,183.08,183.03,11.6]
[1761846345189,5.46158792,183.1,183.04,5.70096106]
[1761846345512,5.46158792,183.1,183.03,11.6]
[1761846345513,5.46030359,183.14,183.06,20.592]
[1761846345679,5.46030359,183.14,183.09,5.70096106]
[1761846345877,0.68,183.15,183.08,5.70096106]
[1761846346111,11.8412398,183.15,183.08,5.70096106]
[1761846346286,6.14027874,183.15,183.11,20.592]
[1761846346479,27.29228934,183.21,183.11,20.592]
[1761846346480,5.45821734,183.21,183.13,5.70096106]
[1761846346680,5.70096106,183.17,183.11,32.192]
[1761846346908,5.70096106,183.15,183.11,32.192]
[1761846347618,19.1037607,183.21,183.11,11.6]
[1761846347908,0.68,183.19,183.11,11.6]
[1761846348210,5.46025902,183.15,183.11,11.6]
[1761846348422,5.70096106,183.14,183.11,11.6]
[1761846348786,6.38096106,183.14,183.08,20.592]
[1761846348991,9.00985486,183.29,183.13,5.70096106]
[1761846349288,0.68,183.31,183.23,5.70096106]
[1761846349499,5.70096106,183.28,183.24,11.6]
[1761846349786,5.70096106,183.25,183.19,20.592]
[1761846349986,9.78882769,183.26,183.19,20.592]
[1761846350320,5.45749374,183.24,183.19,20.592]
[1761846350523,0.68,183.25,183.18,17.30096106]
[1761846350693,6.13705067,183.25,183.18,17.30096106]
[1761846350891,10.46882769,183.29,183.21,20.592]
[1761846351111,0.68,183.28,183.22,11.6]
[1761846351298,5.70096106,183.27,183.22,11.6]
[1761846351506,0.68,183.28,183.22,11.6]
[1761846351692,0.68,183.27,183.22,11.6]
[1761846352184,21.272,183.27,183.16,20.592]
[1761846352496,11.8374755,183.27,183.2,26.29296106]
[1761846352702,5.45586965,183.29,183.21,11.6]
[1761846352887,6.13549735,183.31,183.24,26.29296106]
[1761846353088,6.13549735,183.31,183.25,11.6]
[1761846353287,0.68,183.31,183.25,11.6]
[1761846353487,0.68,183.31,183.27,5.70096106]
[1761846353712,0.68,183.31,183.26,5.70096106]
[1761846353883,6.13529926,183.31,183.26,5.70096106]
[1761846354322,0.1,183.34,183.29,5.70096106]
[1761846354618,5.55436688,183.34,183.29,17.30096106]
[1761846354783,6.23436688,183.34,183.29,17.30096106]
[1761846354990,0.1,183.34,183.31,5.70096106]
[1761846355291,0.1,183.34,183.29,11.6]
[1761846355492,0.1,183.34,183.33,15.48978875]
[1761846355689,0.1,183.34,183.33,21.67315083]
[1761846355900,0.1,183.34,183.33,27.37411189]
[1761846356307,0.1,183.34,183.33,32.82875651]
[1761846356914,0.1,183.34,183.33,15.77411189]
[1761846357113,0.1,183.34,183.33,27.37411189]